[Event "Titled Tuesday Blitz February 15 Late 2022"]
[White "Petrovic, Aleksa"]
[Black "Moral Garcia, Serafin"]
[WhiteFideId "967629"]
[BlackFideId "2201925"]
[WhiteElo "2139"]
[BlackElo "2228"]
[Result "1/2-1/2"]
[Round "08"]
[TimeControl "180+1"]
[Date "2022.02.16"]
[WhiteClock "0:00:06"]
[BlackClock "0:00:39"]

1. d4 {[%clk 0:03:00]}  Nf6 {[%clk 0:02:59]} 2. Nf3 {[%clk 0:03:00]}  g6 {[%clk 0:02:59]} 3. Nbd2 {[%clk 0:02:58]}  d5 {[%clk 0:02:58]} 4. e3 {[%clk 0:02:58]}  Bg7 {[%clk 0:02:58]} 5. b4 {[%clk 0:02:58]}  O-O {[%clk 0:02:57]} 6. Be2 {[%clk 0:02:58]}  a5 {[%clk 0:02:50]} 7. b5 {[%clk 0:02:57]}  c6 {[%clk 0:02:51]} 8. a4 {[%clk 0:02:55]}  Nbd7 {[%clk 0:02:51]} 9. O-O {[%clk 0:02:51]}  Re8 {[%clk 0:02:49]} 10. c4 {[%clk 0:02:51]}  dxc4 {[%clk 0:02:47]} 11. bxc6 {[%clk 0:02:49]}  bxc6 {[%clk 0:02:46]} 12. Nxc4 {[%clk 0:02:44]}  c5 {[%clk 0:02:46]} 13. Nce5 {[%clk 0:02:44]}  cxd4 {[%clk 0:02:46]} 14. Nc6 {[%clk 0:02:25]}  Qc7 {[%clk 0:02:45]} 15. Ncxd4 {[%clk 0:02:21]}  Bb7 {[%clk 0:02:45]} 16. Ba3 {[%clk 0:02:18]}  Rac8 {[%clk 0:02:38]} 17. Rc1 {[%clk 0:02:14]}  Qb6 {[%clk 0:02:38]} 18. Rb1 {[%clk 0:02:09]}  Qa7 {[%clk 0:02:36]} 19. Qb3 {[%clk 0:01:47]}  Ba8 {[%clk 0:02:32]} 20. Nb5 {[%clk 0:01:45]}  Qb6 {[%clk 0:02:28]} 21. Ng5 {[%clk 0:01:37]}  Bd5 {[%clk 0:02:27]} 22. Qd1 {[%clk 0:01:23]}  Qd8 {[%clk 0:02:20]} 23. Bf3 {[%clk 0:01:15]}  Nb6 {[%clk 0:02:15]} 24. Bxd5 {[%clk 0:00:58]}  Qxd5 {[%clk 0:02:12]} 25. Qxd5 {[%clk 0:00:57]}  Nfxd5 {[%clk 0:02:12]} 26. Rfd1 {[%clk 0:00:53]}  h6 {[%clk 0:02:04]} 27. Ne4 {[%clk 0:00:51]}  Red8 {[%clk 0:01:58]} 28. Nc5 {[%clk 0:00:21]}  Nc4 {[%clk 0:01:56]} 29. Nb7 {[%clk 0:00:17]}  Nxa3 {[%clk 0:01:54]} 30. Nxa3 {[%clk 0:00:14]}  Rd7 {[%clk 0:01:53]} 31. Nxa5 {[%clk 0:00:12]}  Ra8 {[%clk 0:01:48]} 32. N3c4 {[%clk 0:00:11]}  e6 {[%clk 0:01:36]} 33. f3 {[%clk 0:00:11]}  Bc3 {[%clk 0:01:35]} 34. Kf2 {[%clk 0:00:11]}  Bxa5 {[%clk 0:01:34]} 35. Rb5 {[%clk 0:00:10]}  Bd8 {[%clk 0:01:30]} 36. a5 {[%clk 0:00:10]}  Kf8 {[%clk 0:01:28]} 37. Ra1 {[%clk 0:00:10]}  Ra6 {[%clk 0:01:27]} 38. Ne5 {[%clk 0:00:05]}  Rda7 {[%clk 0:01:27]} 39. Nc4 {[%clk 0:00:05]}  Ke7 {[%clk 0:01:26]} 40. e4 {[%clk 0:00:05]}  Nc7 {[%clk 0:01:24]} 41. Rb8 {[%clk 0:00:03]}  Kd7 {[%clk 0:01:24]} 42. Ne5+ {[%clk 0:00:04]}  Ke7 {[%clk 0:01:24]} 43. Rd1 {[%clk 0:00:04]}  Ra8 {[%clk 0:01:19]} 44. Rd7+ {[%clk 0:00:03]}  Kf6 {[%clk 0:01:16]} 45. Ng4+ {[%clk 0:00:03]}  Kg7 {[%clk 0:01:15]} 46. Rbxd8 {[%clk 0:00:04]}  Rxd8 {[%clk 0:01:15]} 47. Rxd8 {[%clk 0:00:05]}  Rxa5 {[%clk 0:01:15]} 48. Rd7 {[%clk 0:00:06]}  Ne8 {[%clk 0:01:14]} 49. Kg3 {[%clk 0:00:06]}  h5 {[%clk 0:01:14]} 50. Ne3 {[%clk 0:00:05]}  Nf6 {[%clk 0:01:13]} 51. Rc7 {[%clk 0:00:05]}  Ra3 {[%clk 0:01:11]} 52. Nc4 {[%clk 0:00:05]}  Rc3 {[%clk 0:01:05]} 53. Kf4 {[%clk 0:00:04]}  Rc2 {[%clk 0:00:54]} 54. Kg3 {[%clk 0:00:01]}  h4+ {[%clk 0:00:53]} 55. Kxh4 {[%clk 0:00:01]}  Rxg2 {[%clk 0:00:52]} 56. Kh3 {[%clk 0:00:01]}  Rc2 {[%clk 0:00:52]} 57. Rc8 {[%clk 0:00:02]}  Nh5 {[%clk 0:00:51]} 58. Nd6 {[%clk 0:00:02]}  Rxc8 {[%clk 0:00:50]} 59. Nxc8 {[%clk 0:00:02]}  Kf6 {[%clk 0:00:50]} 60. Nd6 {[%clk 0:00:02]}  Nf4+ {[%clk 0:00:49]} 61. Kg4 {[%clk 0:00:02]}  Nd3 {[%clk 0:00:48]} 62. h4 {[%clk 0:00:03]}  Ke7 {[%clk 0:00:46]} 63. Nc4 {[%clk 0:00:03]}  Nf2+ {[%clk 0:00:46]} 64. Kg3 {[%clk 0:00:02]}  Nd3 {[%clk 0:00:45]} 65. f4 {[%clk 0:00:03]}  f6 {[%clk 0:00:43]} 66. f5 {[%clk 0:00:02]}  gxf5 {[%clk 0:00:41]} 67. exf5 {[%clk 0:00:03]}  e5 {[%clk 0:00:41]} 68. h5 {[%clk 0:00:04]}  Kf7 {[%clk 0:00:42]} 69. Nd6+ {[%clk 0:00:03]}  Kg7 {[%clk 0:00:42]} 70. Ne4 {[%clk 0:00:04]}  Nb4 {[%clk 0:00:41]} 71. h6+ {[%clk 0:00:05]}  Kxh6 {[%clk 0:00:40]} 72. Nxf6 {[%clk 0:00:05]}  Kg5 {[%clk 0:00:40]} 73. Ng4 {[%clk 0:00:05]}  e4 {[%clk 0:00:39]} 74. Nf2 {[%clk 0:00:05]}  e3 {[%clk 0:00:38]} 75. Kf3 {[%clk 0:00:06]}  exf2 {[%clk 0:00:38]} 76. Kxf2 {[%clk 0:00:06]}  Kxf5 {[%clk 0:00:39]} 1/2-1/2


[Site "https://www.chess.com"]

[Event "Titled Tuesday Blitz February 15 Late 2022"]
[White "Rangel, Daniel"]
[Black "Vargas Pereda, Jesus Manue"]
[WhiteFideId "2124475"]
[BlackFideId "5115710"]
[WhiteElo "2187"]
[BlackElo "1780"]
[Result "1-0"]
[Round "08"]
[TimeControl "180+1"]
[Date "2022.02.16"]
[WhiteClock "0:02:11"]
[BlackClock "0:01:46"]

1. e4 {[%clk 0:03:00]}  c5 {[%clk 0:02:58]} 2. Nf3 {[%clk 0:03:01]}  Nc6 {[%clk 0:02:58]} 3. d4 {[%clk 0:03:01]}  cxd4 {[%clk 0:02:59]} 4. Nxd4 {[%clk 0:03:02]}  e5 {[%clk 0:02:59]} 5. Nb5 {[%clk 0:03:02]}  d6 {[%clk 0:02:59]} 6. N1c3 {[%clk 0:02:59]}  a6 {[%clk 0:02:59]} 7. Na3 {[%clk 0:02:51]}  b5 {[%clk 0:02:59]} 8. Nd5 {[%clk 0:02:50]}  Nf6 {[%clk 0:02:57]} 9. Bg5 {[%clk 0:02:38]}  Be7 {[%clk 0:02:57]} 10. Bxf6 {[%clk 0:02:37]}  Bxf6 {[%clk 0:02:52]} 11. c4 {[%clk 0:02:37]}  Be6 {[%clk 0:02:41]} 12. cxb5 {[%clk 0:02:35]}  axb5 {[%clk 0:02:33]} 13. Bxb5 {[%clk 0:02:30]}  Rc8 {[%clk 0:02:17]} 14. Rc1 {[%clk 0:02:27]}  Bd7 {[%clk 0:02:08]} 15. Nc4 {[%clk 0:02:15]}  Be7 {[%clk 0:01:55]} 16. Nxe7 {[%clk 0:02:14]}  Qxe7 {[%clk 0:01:47]} 17. Nxd6+ {[%clk 0:02:13]}  Kf8 {[%clk 0:01:46]} 18. Nxc8 {[%clk 0:02:11]} 1-0


[Site "https://www.chess.com"]

[Event "Titled Tuesday Blitz February 15 Late 2022"]
[White "Sliwicki, Damian"]
[Black "Yushko, Olga"]
[WhiteFideId "1127128"]
[BlackFideId "14114500"]
[WhiteElo "2084"]
[BlackElo "2028"]
[Result "0-1"]
[Round "08"]
[TimeControl "180+1"]
[Date "2022.02.16"]
[WhiteClock "0:00:09"]
[BlackClock "0:01:15"]

1. e4 {[%clk 0:03:00]}  d6 {[%clk 0:02:59]} 2. d4 {[%clk 0:02:57]}  e5 {[%clk 0:03:00]} 3. Nf3 {[%clk 0:02:49]}  Nf6 {[%clk 0:02:59]} 4. dxe5 {[%clk 0:02:47]}  Nxe4 {[%clk 0:02:59]} 5. Bc4 {[%clk 0:02:37]}  Be7 {[%clk 0:02:58]} 6. Bxf7+ {[%clk 0:01:43]}  Kxf7 {[%clk 0:02:57]} 7. Qd5+ {[%clk 0:01:42]}  Be6 {[%clk 0:02:56]} 8. Qxe4 {[%clk 0:01:43]}  d5 {[%clk 0:02:54]} 9. Qf4+ {[%clk 0:01:39]}  Ke8 {[%clk 0:02:53]} 10. Nc3 {[%clk 0:01:31]}  c5 {[%clk 0:02:52]} 11. Bd2 {[%clk 0:01:30]}  Nc6 {[%clk 0:02:52]} 12. O-O-O {[%clk 0:01:28]}  Rf8 {[%clk 0:02:51]} 13. Qg3 {[%clk 0:01:28]}  g6 {[%clk 0:02:49]} 14. Kb1 {[%clk 0:01:28]}  d4 {[%clk 0:02:45]} 15. Ne4 {[%clk 0:01:27]}  Qd5 {[%clk 0:02:45]} 16. Nd6+ {[%clk 0:01:02]}  Bxd6 {[%clk 0:02:44]} 17. c4 {[%clk 0:01:03]}  dxc3 {[%clk 0:02:25]} 18. Bxc3 {[%clk 0:01:01]}  Qxa2+ {[%clk 0:02:21]} 19. Kc1 {[%clk 0:00:58]}  Qa1+ {[%clk 0:02:15]} 20. Kd2 {[%clk 0:00:54]}  Qa4 {[%clk 0:02:07]} 21. exd6 {[%clk 0:00:53]}  Kd7 {[%clk 0:02:02]} 22. Ne5+ {[%clk 0:00:51]}  Nxe5 {[%clk 0:02:01]} 23. Qxe5 {[%clk 0:00:51]}  Rxf2+ {[%clk 0:01:59]} 24. Ke1 {[%clk 0:00:48]}  Raf8 {[%clk 0:01:58]} 25. Qe3 {[%clk 0:00:28]}  Qc2 {[%clk 0:01:50]} 26. Rc1 {[%clk 0:00:14]}  Qf5 {[%clk 0:01:21]} 27. Bg7 {[%clk 0:00:08]}  Rf1+ {[%clk 0:01:19]} 28. Rxf1 {[%clk 0:00:08]}  Qxf1+ {[%clk 0:01:19]} 29. Kd2 {[%clk 0:00:09]}  Rf2+ {[%clk 0:01:16]} 30. Kc3 {[%clk 0:00:09]}  Qc4# {[%clk 0:01:15]} 0-1


[Site "https://www.chess.com"]

[Event "Titled Tuesday Blitz February 15 Late 2022"]
[White "Timofeev, Artyom"]
[Black "Mirzoev, Azer"]
[WhiteFideId "4140419"]
[BlackFideId "13400304"]
[WhiteElo "2583"]
[BlackElo "2525"]
[Result "0-1"]
[Round "08"]
[TimeControl "180+1"]
[Date "2022.02.15"]
[WhiteClock "0:00:07"]
[BlackClock "0:00:24"]

1. d4 {[%clk 0:03:00]}  d5 {[%clk 0:02:59]} 2. c4 {[%clk 0:03:00]}  e6 {[%clk 0:02:59]} 3. Nc3 {[%clk 0:02:59]}  Be7 {[%clk 0:02:57]} 4. g3 {[%clk 0:02:55]}  Nf6 {[%clk 0:02:56]} 5. Bg2 {[%clk 0:02:56]}  O-O {[%clk 0:02:56]} 6. Nf3 {[%clk 0:02:56]}  c6 {[%clk 0:02:56]} 7. O-O {[%clk 0:02:47]}  Nbd7 {[%clk 0:02:56]} 8. b3 {[%clk 0:02:46]}  b6 {[%clk 0:02:56]} 9. Bb2 {[%clk 0:02:43]}  Bb7 {[%clk 0:02:52]} 10. Re1 {[%clk 0:02:36]}  Rc8 {[%clk 0:02:48]} 11. Rc1 {[%clk 0:02:35]}  h6 {[%clk 0:02:40]} 12. h3 {[%clk 0:02:35]}  Re8 {[%clk 0:02:36]} 13. Ne5 {[%clk 0:02:22]}  Nxe5 {[%clk 0:02:32]} 14. dxe5 {[%clk 0:02:21]}  Nd7 {[%clk 0:02:31]} 15. f4 {[%clk 0:02:21]}  Nc5 {[%clk 0:02:22]} 16. Kh2 {[%clk 0:02:12]}  dxc4 {[%clk 0:02:19]} 17. Qc2 {[%clk 0:02:12]}  cxb3 {[%clk 0:02:16]} 18. axb3 {[%clk 0:02:12]}  a5 {[%clk 0:02:14]} 19. f5 {[%clk 0:01:59]}  exf5 {[%clk 0:02:13]} 20. Qxf5 {[%clk 0:01:59]}  Rc7 {[%clk 0:02:10]} 21. Rcd1 {[%clk 0:01:52]}  Qc8 {[%clk 0:02:08]} 22. Qh5 {[%clk 0:01:51]}  Qe6 {[%clk 0:02:02]} 23. Rf1 {[%clk 0:01:30]}  Rd8 {[%clk 0:01:55]} 24. h4 {[%clk 0:01:14]}  Rxd1 {[%clk 0:01:49]} 25. Nxd1 {[%clk 0:01:13]}  Bc8 {[%clk 0:01:43]} 26. Ne3 {[%clk 0:01:11]}  Qg6 {[%clk 0:01:30]} 27. Qf3 {[%clk 0:01:06]}  Be6 {[%clk 0:01:22]} 28. Bd4 {[%clk 0:01:00]}  Bf8 {[%clk 0:01:04]} 29. Nc4 {[%clk 0:00:52]}  Bd5 {[%clk 0:00:54]} 30. Qe3 {[%clk 0:00:49]}  Bxg2 {[%clk 0:00:49]} 31. Kxg2 {[%clk 0:00:49]}  Qe6 {[%clk 0:00:43]} 32. Nd6 {[%clk 0:00:26]}  Nxb3 {[%clk 0:00:37]} 33. Bxb6 {[%clk 0:00:24]}  Rd7 {[%clk 0:00:36]} 34. Nf5 {[%clk 0:00:19]}  a4 {[%clk 0:00:34]} 35. Rf3 {[%clk 0:00:14]}  c5 {[%clk 0:00:32]} 36. Nd6 {[%clk 0:00:12]}  Bxd6 {[%clk 0:00:29]} 37. exd6 {[%clk 0:00:12]}  Qxe3 {[%clk 0:00:29]} 38. Rxe3 {[%clk 0:00:13]}  Rxd6 {[%clk 0:00:30]} 39. Bc7 {[%clk 0:00:13]}  Re6 {[%clk 0:00:29]} 40. Rc3 {[%clk 0:00:10]}  Rxe2+ {[%clk 0:00:29]} 41. Kf3 {[%clk 0:00:10]}  Re7 {[%clk 0:00:28]} 42. Bf4 {[%clk 0:00:09]}  h5 {[%clk 0:00:27]} 43. Rc4 {[%clk 0:00:10]}  Ra7 {[%clk 0:00:26]} 44. Be5 {[%clk 0:00:09]}  Nd4+ {[%clk 0:00:26]} 45. Ke4 {[%clk 0:00:09]}  Ne6 {[%clk 0:00:25]} 46. Ba1 {[%clk 0:00:07]}  a3 {[%clk 0:00:25]} 47. Kf5 {[%clk 0:00:08]}  a2 {[%clk 0:00:25]} 48. Ke5 {[%clk 0:00:07]}  Kh7 {[%clk 0:00:25]} 49. Kf5 {[%clk 0:00:07]}  Ra3 {[%clk 0:00:24]} 50. g4 {[%clk 0:00:07]}  Rf3+ {[%clk 0:00:23]} 51. Ke4 {[%clk 0:00:07]}  Rf4+ {[%clk 0:00:23]} 52. Kd5 {[%clk 0:00:06]}  Rxc4 {[%clk 0:00:23]} 53. Kxc4 {[%clk 0:00:07]}  hxg4 {[%clk 0:00:24]} 0-1


[Site "https://www.chess.com"]

[Event "Titled Tuesday Blitz February 15 Late 2022"]
[White "Tregubov, Pavel V."]
[Black "Ramirez, Alejandro"]
[WhiteFideId "4115341"]
[BlackFideId "6500617"]
[WhiteElo "2341"]
[BlackElo "2694"]
[Result "1-0"]
[Round "08"]
[TimeControl "180+1"]
[Date "2022.02.15"]
[WhiteClock "0:00:31"]
[BlackClock "0:00:17"]

1. e4 {[%clk 0:03:00]}  c5 {[%clk 0:02:59]} 2. Nf3 {[%clk 0:03:00]}  e6 {[%clk 0:03:00]} 3. c3 {[%clk 0:02:59]}  Nf6 {[%clk 0:02:58]} 4. e5 {[%clk 0:02:59]}  Nd5 {[%clk 0:02:59]} 5. d4 {[%clk 0:03:00]}  cxd4 {[%clk 0:03:00]} 6. cxd4 {[%clk 0:03:00]}  d6 {[%clk 0:03:01]} 7. Bc4 {[%clk 0:03:00]}  Nc6 {[%clk 0:02:56]} 8. O-O {[%clk 0:03:00]}  dxe5 {[%clk 0:02:56]} 9. dxe5 {[%clk 0:02:59]}  Nb6 {[%clk 0:02:56]} 10. Bd3 {[%clk 0:02:50]}  Nb4 {[%clk 0:02:55]} 11. Bb5+ {[%clk 0:02:42]}  Bd7 {[%clk 0:02:55]} 12. Bg5 {[%clk 0:02:34]}  Be7 {[%clk 0:02:46]} 13. Bxe7 {[%clk 0:02:23]}  Qxe7 {[%clk 0:02:44]} 14. Qe2 {[%clk 0:02:24]}  O-O {[%clk 0:02:36]} 15. Nc3 {[%clk 0:02:22]}  Rac8 {[%clk 0:02:35]} 16. a3 {[%clk 0:02:15]}  N4d5 {[%clk 0:02:34]} 17. Nxd5 {[%clk 0:02:01]}  Nxd5 {[%clk 0:02:35]} 18. Bxd7 {[%clk 0:02:00]}  Qxd7 {[%clk 0:02:36]} 19. Rfd1 {[%clk 0:01:59]}  Rc7 {[%clk 0:02:28]} 20. Qd3 {[%clk 0:01:46]}  h6 {[%clk 0:02:25]} 21. Nd4 {[%clk 0:01:45]}  Rfc8 {[%clk 0:01:39]} 22. Nb5 {[%clk 0:01:37]}  Rc5 {[%clk 0:01:39]} 23. Nd6 {[%clk 0:01:35]}  R8c6 {[%clk 0:01:40]} 24. g3 {[%clk 0:01:32]}  Rc2 {[%clk 0:01:31]} 25. Rd2 {[%clk 0:01:26]}  Qc7 {[%clk 0:01:22]} 26. Rad1 {[%clk 0:01:24]}  a6 {[%clk 0:01:14]} 27. Kg2 {[%clk 0:01:21]}  R6c5 {[%clk 0:01:04]} 28. Rxc2 {[%clk 0:01:13]}  Rxc2 {[%clk 0:01:04]} 29. Rd2 {[%clk 0:01:14]}  Qc6 {[%clk 0:00:51]} 30. Kh3 {[%clk 0:01:04]}  Rc1 {[%clk 0:00:27]} 31. Qf3 {[%clk 0:01:04]}  Rc2 {[%clk 0:00:25]} 32. Qxf7+ {[%clk 0:00:59]}  Kh8 {[%clk 0:00:24]} 33. Ne8 {[%clk 0:00:41]}  Nf4+ {[%clk 0:00:18]} 34. Qxf4 {[%clk 0:00:32]}  Rxd2 {[%clk 0:00:17]} 35. Qf8+ {[%clk 0:00:31]} 1-0


[Site "https://www.chess.com"]

[Event "Titled Tuesday Blitz February 15 Late 2022"]
[White "Vusatiuk, Vladimir"]
[Black "Goryachkina, Aleksandra"]
[WhiteFideId "14118610"]
[BlackFideId "4147103"]
[WhiteElo "2157"]
[BlackElo "2426"]
[Result "1-0"]
[Round "08"]
[TimeControl "180+1"]
[Date "2022.02.16"]
[WhiteClock "0:00:02"]
[BlackClock "0:00:02"]

1. h4 {[%clk 0:02:56]}  d5 {[%clk 0:02:58]} 2. Nf3 {[%clk 0:02:55]}  Bf5 {[%clk 0:02:53]} 3. d3 {[%clk 0:02:53]}  e6 {[%clk 0:02:49]} 4. Nd4 {[%clk 0:02:38]}  c5 {[%clk 0:02:35]} 5. Nxf5 {[%clk 0:02:37]}  exf5 {[%clk 0:02:36]} 6. g3 {[%clk 0:02:30]}  Nc6 {[%clk 0:02:27]} 7. Bg2 {[%clk 0:02:28]}  Nf6 {[%clk 0:02:26]} 8. c4 {[%clk 0:02:12]}  dxc4 {[%clk 0:02:05]} 9. Qa4 {[%clk 0:02:10]}  cxd3 {[%clk 0:01:51]} 10. Bxc6+ {[%clk 0:02:07]}  bxc6 {[%clk 0:01:51]} 11. Qxc6+ {[%clk 0:02:08]}  Nd7 {[%clk 0:01:52]} 12. exd3 {[%clk 0:01:52]}  Be7 {[%clk 0:01:51]} 13. O-O {[%clk 0:01:45]}  O-O {[%clk 0:01:51]} 14. Bf4 {[%clk 0:01:39]}  Nb6 {[%clk 0:01:36]} 15. Nc3 {[%clk 0:01:25]}  Qxd3 {[%clk 0:01:23]} 16. Rad1 {[%clk 0:01:17]}  Qc4 {[%clk 0:01:22]} 17. Rfe1 {[%clk 0:01:07]}  Bf6 {[%clk 0:01:20]} 18. Be5 {[%clk 0:01:05]}  Bxe5 {[%clk 0:01:14]} 19. Rxe5 {[%clk 0:01:06]}  Rac8 {[%clk 0:01:14]} 20. Qb7 {[%clk 0:00:56]}  Na4 {[%clk 0:00:49]} 21. Rde1 {[%clk 0:00:29]}  h6 {[%clk 0:00:43]} 22. Nd5 {[%clk 0:00:27]}  Rb8 {[%clk 0:00:36]} 23. Qxa7 {[%clk 0:00:21]}  Nxb2 {[%clk 0:00:36]} 24. Rxf5 {[%clk 0:00:17]}  Nd3 {[%clk 0:00:33]} 25. Rxf7 {[%clk 0:00:15]}  Rxf7 {[%clk 0:00:24]} 26. Qxb8+ {[%clk 0:00:16]}  Kh7 {[%clk 0:00:25]} 27. Ne7 {[%clk 0:00:09]}  Rxf2 {[%clk 0:00:18]} 28. Rd1 {[%clk 0:00:03]}  Rb2 {[%clk 0:00:14]} 29. Qd6 {[%clk 0:00:02]}  Qc2 {[%clk 0:00:01]} 30. Qg6+ {[%clk 0:00:02]}  Kh8 {[%clk 0:00:02]} 31. Qe8+ {[%clk 0:00:02]} 1-0


[Site "https://www.chess.com"]

[Event "Titled Tuesday Blitz February 15 Late 2022"]
[White "Wartiovaara, Oliver"]
[Black "Stankovic, Ivan G"]
[WhiteFideId "513024"]
[BlackFideId "902837"]
[WhiteElo "1971"]
[BlackElo "2195"]
[Result "1/2-1/2"]
[Round "08"]
[TimeControl "180+1"]
[Date "2022.02.16"]
[WhiteClock "0:00:14"]
[BlackClock "0:00:08"]

1. e4 {[%clk 0:03:00]}  c5 {[%clk 0:02:58]} 2. Nf3 {[%clk 0:03:00]}  Nc6 {[%clk 0:02:56]} 3. d4 {[%clk 0:02:57]}  cxd4 {[%clk 0:02:53]} 4. Nxd4 {[%clk 0:02:58]}  g6 {[%clk 0:02:53]} 5. c4 {[%clk 0:02:57]}  Nf6 {[%clk 0:02:52]} 6. Nc3 {[%clk 0:02:56]}  d6 {[%clk 0:02:52]} 7. Be3 {[%clk 0:02:50]}  Ng4 {[%clk 0:02:50]} 8. Bc1 {[%clk 0:02:50]}  Qb6 {[%clk 0:02:49]} 9. Nce2 {[%clk 0:02:44]}  Bg7 {[%clk 0:02:40]} 10. h3 {[%clk 0:02:43]}  Nxf2 {[%clk 0:02:34]} 11. Kxf2 {[%clk 0:02:42]}  Nxd4 {[%clk 0:02:34]} 12. Be3 {[%clk 0:02:37]}  e5 {[%clk 0:02:28]} 13. Qd2 {[%clk 0:02:14]}  O-O {[%clk 0:02:25]} 14. Rd1 {[%clk 0:02:11]}  f5 {[%clk 0:02:18]} 15. Kg1 {[%clk 0:02:08]}  fxe4 {[%clk 0:02:04]} 16. Nxd4 {[%clk 0:02:07]}  exd4 {[%clk 0:02:04]} 17. Bxd4 {[%clk 0:02:07]}  Bxd4+ {[%clk 0:01:57]} 18. Qxd4 {[%clk 0:02:08]}  e3 {[%clk 0:01:44]} 19. Rh2 {[%clk 0:02:05]}  Be6 {[%clk 0:01:23]} 20. g4 {[%clk 0:02:02]}  Rf3 {[%clk 0:00:36]} 21. Re2 {[%clk 0:01:58]}  Raf8 {[%clk 0:00:32]} 22. Qxb6 {[%clk 0:01:55]}  axb6 {[%clk 0:00:32]} 23. b3 {[%clk 0:01:53]}  d5 {[%clk 0:00:28]} 24. Bg2 {[%clk 0:01:51]}  dxc4 {[%clk 0:00:21]} 25. Bxf3 {[%clk 0:01:47]}  Rxf3 {[%clk 0:00:22]} 26. Rd6 {[%clk 0:01:43]}  Kf7 {[%clk 0:00:19]} 27. Kg2 {[%clk 0:01:43]}  Rf4 {[%clk 0:00:19]} 28. Rxe3 {[%clk 0:01:43]}  cxb3 {[%clk 0:00:15]} 29. axb3 {[%clk 0:01:23]}  Bc8 {[%clk 0:00:09]} 30. Rxb6 {[%clk 0:01:18]}  Rd4 {[%clk 0:00:07]} 31. Rc3 {[%clk 0:01:09]}  Rd8 {[%clk 0:00:05]} 32. Rb4 {[%clk 0:01:07]}  Kf6 {[%clk 0:00:05]} 33. Rc7 {[%clk 0:01:06]}  h5 {[%clk 0:00:04]} 34. Rb6+ {[%clk 0:01:03]}  Kg5 {[%clk 0:00:04]} 35. Rc5+ {[%clk 0:01:03]}  Kh4 {[%clk 0:00:04]} 36. Rxg6 {[%clk 0:00:45]}  hxg4 {[%clk 0:00:04]} 37. Rxg4+ {[%clk 0:00:44]}  Bxg4 {[%clk 0:00:02]} 38. hxg4 {[%clk 0:00:44]}  Kxg4 {[%clk 0:00:03]} 39. Rc7 {[%clk 0:00:39]}  Rd2+ {[%clk 0:00:04]} 40. Kf1 {[%clk 0:00:38]}  b5 {[%clk 0:00:04]} 41. Rc5 {[%clk 0:00:37]}  Kf3 {[%clk 0:00:04]} 42. Ke1 {[%clk 0:00:36]}  Re2+ {[%clk 0:00:04]} 43. Kd1 {[%clk 0:00:36]}  b4 {[%clk 0:00:05]} 44. Rc4 {[%clk 0:00:36]}  Re4 {[%clk 0:00:06]} 45. Kc2 {[%clk 0:00:32]}  Ke3 {[%clk 0:00:05]} 46. Rc5 {[%clk 0:00:26]}  Rd4 {[%clk 0:00:06]} 47. Re5+ {[%clk 0:00:26]}  Kf4 {[%clk 0:00:06]} 48. Rh5 {[%clk 0:00:25]}  Kg4 {[%clk 0:00:06]} 49. Re5 {[%clk 0:00:25]}  Kf4 {[%clk 0:00:06]} 50. Re8 {[%clk 0:00:25]}  Kf5 {[%clk 0:00:06]} 51. Rf8+ {[%clk 0:00:25]}  Ke6 {[%clk 0:00:06]} 52. Re8+ {[%clk 0:00:25]}  Kf7 {[%clk 0:00:07]} 53. Rc8 {[%clk 0:00:24]}  Ke6 {[%clk 0:00:06]} 54. Re8+ {[%clk 0:00:24]}  Kd7 {[%clk 0:00:06]} 55. Rh8 {[%clk 0:00:24]}  Kc6 {[%clk 0:00:06]} 56. Rh6+ {[%clk 0:00:23]}  Kb5 {[%clk 0:00:06]} 57. Rh5+ {[%clk 0:00:24]}  Kb6 {[%clk 0:00:07]} 58. Rh6+ {[%clk 0:00:24]}  Kc7 {[%clk 0:00:07]} 59. Rh7+ {[%clk 0:00:19]}  Kc6 {[%clk 0:00:08]} 60. Rh6+ {[%clk 0:00:20]}  Kc5 {[%clk 0:00:07]} 61. Rh5+ {[%clk 0:00:20]}  Kb6 {[%clk 0:00:07]} 62. Rh6+ {[%clk 0:00:20]}  Kc5 {[%clk 0:00:07]} 63. Rh5+ {[%clk 0:00:20]}  Kd6 {[%clk 0:00:08]} 64. Rh6+ {[%clk 0:00:21]}  Ke5 {[%clk 0:00:08]} 65. Rh5+ {[%clk 0:00:21]}  Kf6 {[%clk 0:00:08]} 66. Rh6+ {[%clk 0:00:21]}  Kg5 {[%clk 0:00:08]} 67. Rc6 {[%clk 0:00:21]}  Kf4 {[%clk 0:00:08]} 68. Rc4 {[%clk 0:00:20]}  Ke3 {[%clk 0:00:09]} 69. Rc5 {[%clk 0:00:19]}  Rd2+ {[%clk 0:00:09]} 70. Kc1 {[%clk 0:00:19]}  Rd3 {[%clk 0:00:08]} 71. Kc2 {[%clk 0:00:19]}  Rd2+ {[%clk 0:00:08]} 72. Kc1 {[%clk 0:00:19]}  Rh2 {[%clk 0:00:08]} 73. Rc4 {[%clk 0:00:18]}  Kd3 {[%clk 0:00:08]} 74. Rxb4 {[%clk 0:00:17]}  Kc3 {[%clk 0:00:09]} 75. Rc4+ {[%clk 0:00:16]}  Kxb3 {[%clk 0:00:09]} 76. Rc8 {[%clk 0:00:16]}  Rh1+ {[%clk 0:00:10]} 77. Kd2 {[%clk 0:00:16]}  Rh2+ {[%clk 0:00:10]} 78. Kd3 {[%clk 0:00:15]}  Rh3+ {[%clk 0:00:10]} 79. Kd4 {[%clk 0:00:16]}  Rh4+ {[%clk 0:00:10]} 80. Kd3 {[%clk 0:00:15]}  Rh3+ {[%clk 0:00:10]} 81. Kd4 {[%clk 0:00:14]}  Kb2 {[%clk 0:00:10]} 82. Rb8+ {[%clk 0:00:14]}  Rb3 {[%clk 0:00:08]} 1/2-1/2


[Site "https://www.chess.com"]

[Event "Titled Tuesday Blitz February 15 Late 2022"]
[White "Wieczorek, Oskar"]
[Black "Bon, Michael"]
[WhiteFideId "1133950"]
[BlackFideId "620696"]
[WhiteElo "2319"]
[BlackElo "2469"]
[Result "1-0"]
[Round "08"]
[TimeControl "180+1"]
[Date "2022.02.16"]
[WhiteClock "0:02:21"]
[BlackClock "0:01:26"]

1. e4 {[%clk 0:03:00]}  c5 {[%clk 0:02:52]} 2. Nf3 {[%clk 0:03:00]}  d6 {[%clk 0:02:52]} 3. d4 {[%clk 0:03:00]}  cxd4 {[%clk 0:02:53]} 4. Nxd4 {[%clk 0:03:01]}  Nf6 {[%clk 0:02:54]} 5. Nc3 {[%clk 0:03:02]}  Nc6 {[%clk 0:02:54]} 6. h3 {[%clk 0:03:00]}  g6 {[%clk 0:02:53]} 7. Bc4 {[%clk 0:02:59]}  Bg7 {[%clk 0:02:52]} 8. O-O {[%clk 0:03:00]}  O-O {[%clk 0:02:37]} 9. Re1 {[%clk 0:02:58]}  Bd7 {[%clk 0:02:27]} 10. Be3 {[%clk 0:02:47]}  Rc8 {[%clk 0:02:24]} 11. Bb3 {[%clk 0:02:41]}  Na5 {[%clk 0:02:23]} 12. Qd3 {[%clk 0:02:41]}  a6 {[%clk 0:02:18]} 13. Nd5 {[%clk 0:02:36]}  Nxb3 {[%clk 0:02:01]} 14. axb3 {[%clk 0:02:35]}  e6 {[%clk 0:01:32]} 15. Nxf6+ {[%clk 0:02:32]}  Qxf6 {[%clk 0:01:31]} 16. c3 {[%clk 0:02:25]}  Rfd8 {[%clk 0:01:29]} 17. Nf3 {[%clk 0:02:23]}  Bc6 {[%clk 0:01:26]} 18. Bg5 {[%clk 0:02:21]} 1-0


[Site "https://www.chess.com"]